[Event "German-ch Women 2024"]
[Site "Ostfildern"]
[Date "2024.08.22"]
[Round "6.9"]
[White "Koeberl, Christiane"]
[Black "Foltin, Alica"]
[Result "1-0"]
[ECO "E60"]
[WhiteElo "1745"]
[BlackElo "1722"]
[Annotator "NA RC"]
[PlyCount "49"]
[EventDate "2024.08.16"]
[EventType "tourn"]
[EventCountry "GER"]
[SourceTitle "playchess.com"]
[Source "ChessBase"]
[SourceQuality "1"]
[TimeControl "40/5400+30:1800+30"]

1. d4 {[%emt 0:00:02]} Nf6 {[%emt 0:00:15]} 2. Nf3 {[%emt 0:00:03]} g6 {[%emt 0:00:34]} 3. g3 {[%emt 0:00:15]} Bg7 {[%emt 0:00:08]} 4. Bg2 {[%emt 0:00:01]} O-O {[%emt 0:00:10]} 5. O-O {[%emt 0:00:04]} d6 {[%emt 0:00:44]} 6. b3 {[%emt 0:00:04]} Nbd7 {[%emt 0:02:12]} 7. Bb2 {[%emt 0:00:32]} c6 {[%emt 0:02:29]} 8. c4 {[%emt 0:00:48]} e5 {[%emt 0:02:11]} 9. dxe5 {[%emt 0:02:25]} Ne8 {[%emt 0:05:53]} 10. Qc2 {[%emt 0:03:28]} Nxe5 {[%emt 0:02:09]} 11. Nbd2 {[%emt 0:00:24]} Nxf3+ {[%emt 0:02:09]} 12. Bxf3 {[%emt 0:01:38]} Nf6 {[%emt 0:06:43]} 13. Rfe1 {[%emt 0:05:30]} d5 {[%emt 0:02:32]} 14. Rad1 {[%emt 0:01:23]} d4 {[%emt 0:09:42]} 15. b4 {[%emt 0:04:18]} Qb6 {[%emt 0:05:35]} 16. a3 {[%emt 0:06:05]} Bf5 {[%emt 0:09:07]} 17. Qb3 {[%emt 0:00:54]} Rad8 {[%emt 0:01:41]} 18. c5 {[%emt 0:00:54]} Qc7 {[%emt 0:01:41]} 19. Nc4 {[%emt 0:02:00]} Be6 {[%emt 0:05:29]} 20. Qc2 {[%emt 0:00:18]} Bf5 {[%emt 0:02:31]} 21. Qc1 {[%emt 0:07:45]} d3 {[%emt 0:04:00]} 22. e4 {[%emt 0:01:42]} Be6 {[%emt 0:00:32]} 23. Nd6 {[%emt 0:00:54]} d2 {[%emt 0:06:40]} 24. Rxd2 {[%emt 0:02:37]} Bh6 {[%emt 0:00:13]} 25. Bxf6 {[%emt 0:00:38]} 1-0

[Event "German-ch Women 2024"]
[Site "Ostfildern"]
[Date "2024.08.23"]
[Round "7.1"]
[White "Kostak, Tetyana"]
[Black "Bluebaum, Johanna"]
[Result "1-0"]
[ECO "D04"]
[WhiteElo "2094"]
[BlackElo "1994"]
[Annotator "NA RC"]
[PlyCount "97"]
[EventDate "2024.08.16"]
[EventType "tourn"]
[EventCountry "GER"]
[SourceTitle "playchess.com"]
[Source "ChessBase"]
[SourceQuality "1"]
[TimeControl "40/5400+30:1800+30"]

1. d4 {[%emt 0:00:08]} Nf6 {[%emt 0:00:33]} 2. Nf3 {[%emt 0:00:31]} d5 {[%emt 0:00:40]} 3. e3 {[%emt 0:00:39]} Bg4 {[%emt 0:00:51]} 4. Be2 {[%emt 0:02:40]} e6 {[%emt 0:00:34]} 5. h3 {[%emt 0:00:57]} Bh5 {[%emt 0:02:43]} 6. g4 {[%emt 0:00:46]} Bg6 {[%emt 0:00:33]} 7. Ne5 {[%emt 0:00:06]} Ne4 {[%emt 0:08:42]} 8. Bf3 {[%emt 0:04:25]} Qh4 {[%emt 0:05:25]} 9. Qe2 {[%emt 0:00:24]} Bd6 {[%emt 0:12:49]} 10. Nd2 {[%emt 0:04:17]} Bxe5 {[%emt 0:04:38]} 11. Bxe4 {[%emt 0:05:33]} dxe4 {[%emt 0:04:34]} 12. Qb5+ {[%emt 0:03:25]} Nc6 {[%emt 0:04:05]} 13. Qxb7 {[%emt 0:07:00]} O-O {[%emt 0:07:42]} 14. Qxc6 {[%emt 0:00:18]} Bxd4 15. exd4 {[%emt 0:01:18]} e3 {[%emt 0:11:52]} 16. Ne4 {[%emt 0:00:10]} Bxe4 17. Qxe4 {[%emt 0:00:07]} Qxf2+ {[%emt 0:06:43]} 18. Kd1 {[%emt 0:00:07]} e2+ 19. Qxe2 {[%emt 0:00:11]} Qxd4+ {[%emt 0:00:29]} 20. Ke1 {[%emt 0:04:36]} Rad8 {[%emt 0:02:23]} 21. c3 {[%emt 0:00:31]} Qd5 {[%emt 0:02:02]} 22. Rh2 {[%emt 0:00:37]} f5 {[%emt 0:03:56]} 23. Bg5 {[%emt 0:01:59]} Rde8 {[%emt 0:00:19]} 24. Qd2 {[%emt 0:02:38]} Qb5 {[%emt 0:03:42]} 25. Qe2 {[%emt 0:02:37]} Qc6 {[%emt 0:01:17]} 26. Qg2 {[%emt 0:08:05]} Qa4 {[%emt 0:00:11]} 27. b3 {[%emt 0:00:41]} Qa5 {[%emt 0:00:26]} 28. Bd2 {[%emt 0:00:27]} Qe5+ {[%emt 0:05:57]} 29. Kd1 {[%emt 0:01:55]} fxg4 {[%emt 0:00:23]} 30. hxg4 {[%emt 0:00:32]} Rd8 {[%emt 0:01:39]} 31. Kc2 {[%emt 0:01:02]} Rd7 {[%emt 0:01:14]} 32. Re1 {[%emt 0:01:41]} Qa5 {[%emt 0:01:38]} 33. Kb2 {[%emt 0:00:37]} Rfd8 {[%emt 0:00:31]} 34. Re2 {[%emt 0:02:24]} g6 {[%emt 0:02:16]} 35. Qe4 {[%emt 0:01:41]} Rd6 {[%emt 0:00:17]} 36. Qc2 {[%emt 0:07:18]} Ra6 {[%emt 0:01:06]} 37. Kb1 {[%emt 0:00:22]} c5 {[%emt 0:01:50]} 38. c4 {[%emt 0:00:16]} Qc7 {[%emt 0:00:42]} 39. Bc3 {[%emt 0:01:30]} Qf4 {[%emt 0:01:17]} 40. Rd2 {[%emt 0:08:11]} Rad6 {[%emt 0:02:45]} 41. Rxd6 {[%emt 0:31:50]} Rxd6 {[%emt 0:31:12]} 42. Qe2 {[%emt 0:03:53]} Qg3 {[%emt 0:00:00]} 43. Kb2 {[%emt 0:00:00]} Rd3 {[%emt 0:00:00]} 44. Qxe6+ {[%emt 0:00:00]} Kf8 {[%emt 0:00:00]} 45. Qf6+ {[%emt 0:00:00]} Ke8 {[%emt 0:00:00]} 46. Qh8+ {[%emt 0:00:00]} Kd7 {[%emt 0:00:00]} 47. Rxh7+ {[%emt 0:00:00]} Kc6 {[%emt 0:00:00]} 48. Qc8+ {[%emt 0:00:00]} Kb6 {[%emt 0:00:00]} 49. Qb7# {[%emt 0:00:00]} 1-0

[Event "German-ch Women 2024"]
[Site "Ostfildern"]
[Date "2024.08.23"]
[Round "7.2"]
[White "Braun, Kristin"]
[Black "Staerk, Elisa"]
[Result "1/2-1/2"]
[ECO "B52"]
[WhiteElo "2001"]
[BlackElo "2002"]
[Annotator "NA"]
[PlyCount "189"]
[EventDate "2024.08.16"]
[EventType "tourn"]
[EventCountry "GER"]
[SourceTitle "playchess.com"]
[Source "ChessBase"]
[SourceQuality "1"]
[TimeControl "40/5400+30:1800+30"]

1. e4 {[%emt 0:00:01]} c5 {[%emt 0:00:05]} 2. Nf3 {[%emt 0:00:06]} d6 {[%emt 0:00:06]} 3. Bb5+ {[%emt 0:00:08]} Bd7 {[%emt 0:00:05]} 4. c4 {[%emt 0:01:10]} Nf6 {[%emt 0:00:40]} 5. Nc3 {[%emt 0:00:30]} a6 {[%emt 0:00:46]} 6. Bxd7+ {[%emt 0:00:49]} Qxd7 {[%emt 0:00:08]} 7. d4 {[%emt 0:02:16]} cxd4 {[%emt 0:00:19]} 8. Nxd4 {[%emt 0:00:11]} g6 {[%emt 0:00:22]} 9. O-O {[%emt 0:00:27]} Bg7 {[%emt 0:00:19]} 10. h3 {[%emt 0:02:30]} O-O {[%emt 0:00:24]} 11. Be3 {[%emt 0:00:06]} Nc6 {[%emt 0:01:04]} 12. Rc1 {[%emt 0:03:16]} e6 {[%emt 0:02:56]} 13. b3 {[%emt 0:03:33]} Rfd8 {[%emt 0:09:46]} 14. Qd3 {[%emt 0:09:50]} Nxd4 15. Bxd4 {[%emt 0:00:25]} b5 16. cxb5 {[%emt 0:06:08]} axb5 17. Nxb5 {[%emt 0:11:03]} Rxa2 {[%emt 0:09:21]} 18. Rc7 {[%emt 0:00:41]} Qe8 {[%emt 0:01:07]} 19. Rd1 {[%emt 0:07:17]} Nxe4 {[%emt 0:10:36]} 20. Bxg7 Kxg7 {[%emt 0:08:05]} 21. Qxe4 {[%emt 0:27:45]} Qxb5 {[%emt 0:01:43]} 22. Qxe6 {[%emt 0:00:05]} Rxf2 {[%emt 0:08:10]} 23. Qe7 {[%emt 0:16:59]} Qe2 {[%emt 0:04:17]} 24. Qxe2 {[%emt 0:00:04]} Rxe2 {[%emt 0:00:03]} 25. Rf1 {[%emt 0:00:05]} Rf8 {[%emt 0:00:08]} 26. Rd7 {[%emt 0:01:23]} Kg8 {[%emt 0:14:19]} 27. Rxd6 {[%emt 0:00:20]} Rb2 {[%emt 0:00:36]} 28. Rf3 {[%emt 0:02:43]} Rb8 {[%emt 0:00:42]} 29. Rd7 {[%emt 0:00:20]} f5 {[%emt 0:00:51]} 30. Rc3 {[%emt 0:00:42]} R2xb3 {[%emt 0:02:31]} 31. Rcc7 {[%emt 0:00:06]} R3b6 {[%emt 0:00:38]} 32. Rg7+ {[%emt 0:00:32]} Kh8 {[%emt 0:00:33]} 33. Rxh7+ {[%emt 0:00:05]} Kg8 {[%emt 0:00:04]} 34. Rcg7+ {[%emt 0:00:43]} Kf8 {[%emt 0:00:08]} 35. Kh2 {[%emt 0:00:34]} f4 {[%emt 0:02:18]} 36. Rc7 {[%emt 0:00:34]} Kg8 {[%emt 0:00:44]} 37. Rhg7+ {[%emt 0:00:37]} Kh8 {[%emt 0:00:16]} 38. Rgf7 {[%emt 0:00:11]} Kg8 {[%emt 0:01:48]} 39. Rxf4 {[%emt 0:00:20]} R6b7 {[%emt 0:00:39]} 40. Rff7 {[%emt 0:03:43]} Rxc7 {[%emt 0:00:06]} 41. Rxc7 {[%emt 0:30:00]} Rb5 {[%emt 0:31:48]} 42. Kg3 {[%emt 0:02:17]} Rb4 {[%emt 0:01:10]} 43. Kf3 {[%emt 0:00:34]} Ra4 {[%emt 0:00:25]} 44. g3 {[%emt 0:00:00]} Rb4 {[%emt 0:00:00]} 45. Re7 {[%emt 0:00:00]} Ra4 {[%emt 0:00:00]} 46. Re4 {[%emt 0:00:00]} Ra3+ {[%emt 0:00:00]} 47. Kf4 {[%emt 0:00:00]} Kf7 {[%emt 0:00:00]} 48. h4 {[%emt 0:00:00]} Kf6 {[%emt 0:00:00]} 49. Rb4 {[%emt 0:00:00]} Ra7 {[%emt 0:00:00]} 50. g4 {[%emt 0:00:00]} Kg7 {[%emt 0:00:00]} 51. g5 {[%emt 0:00:00]} Ra5 {[%emt 0:00:00]} 52. Ke4 {[%emt 0:00:00]} Rc5 {[%emt 0:00:00]} 53. Rb7+ {[%emt 0:00:00]} Kg8 {[%emt 0:00:00]} 54. Rd7 {[%emt 0:00:00]} Rf5 {[%emt 0:00:00]} 55. Rd5 {[%emt 0:00:00]} Rf1 {[%emt 0:00:00]} 56. Ke5 {[%emt 0:00:00]} Kf7 {[%emt 0:00:00]} 57. Rd7+ {[%emt 0:00:00]} Kg8 {[%emt 0:00:00]} 58. Ke6 {[%emt 0:00:00]} Rf2 {[%emt 0:00:00]} 59. Rd4 {[%emt 0:03:45]} Kg7 {[%emt 0:00:00]} 60. Re4 {[%emt 0:00:47]} Ra2 {[%emt 0:00:00]} 61. Rf4 {[%emt 0:00:56]} Ra6+ {[%emt 0:00:00]} 62. Kd7 {[%emt 0:00:33]} Ra7+ {[%emt 0:00:00]} 63. Kc6 {[%emt 0:00:04]} Ra6+ {[%emt 0:00:00]} 64. Kb5 {[%emt 0:00:03]} Rd6 {[%emt 0:00:00]} 65. Kc5 {[%emt 0:00:31]} Rd1 {[%emt 0:00:00]} 66. Rd4 {[%emt 0:00:29]} Re1 {[%emt 0:00:10]} 67. Kd6 {[%emt 0:00:20]} Re2 {[%emt 0:00:40]} 68. Kd7 {[%emt 0:00:30]} Re1 {[%emt 0:00:28]} 69. Kd8 {[%emt 0:00:04]} Re2 {[%emt 0:01:44]} 70. Rf4 {[%emt 0:00:20]} Rd2+ {[%emt 0:01:21]} 71. Ke7 {[%emt 0:00:08]} Re2+ {[%emt 0:00:07]} 72. Kd6 {[%emt 0:00:12]} Rd2+ {[%emt 0:00:24]} 73. Ke5 {[%emt 0:00:28]} Re2+ {[%emt 0:00:45]} 74. Kd4 {[%emt 0:00:14]} Ra2 {[%emt 0:01:05]} 75. Ke3 {[%emt 0:00:50]} Ra3+ {[%emt 0:00:22]} 76. Kf2 {[%emt 0:00:38]} Rb3 {[%emt 0:00:35]} 77. Rf3 {[%emt 0:00:07]} Rb4 {[%emt 0:01:17]} 78. Kg3 {[%emt 0:00:03]} Ra4 {[%emt 0:00:11]} 79. Rf4 {[%emt 0:00:09]} Ra3+ {[%emt 0:00:18]} 80. Kg4 {[%emt 0:00:05]} Ra1 {[%emt 0:00:14]} 81. Rb4 {[%emt 0:00:32]} Rg1+ {[%emt 0:00:56]} 82. Kf3 {[%emt 0:00:36]} Rf1+ {[%emt 0:00:27]} 83. Kg3 {[%emt 0:00:01]} Rg1+ {[%emt 0:01:57]} 84. Kf2 {[%emt 0:00:08]} Ra1 {[%emt 0:00:13]} 85. Re4 {[%emt 0:01:44]} Ra3 {[%emt 0:00:50]} 86. Re3 {[%emt 0:00:25]} Ra4 {[%emt 0:00:44]} 87. Kg3 {[%emt 0:00:07]} Ra1 {[%emt 0:00:11]} 88. Kf4 {[%emt 0:01:07]} Rf1+ {[%emt 0:01:03]} 89. Rf3 {[%emt 0:00:22]} Rh1 {[%emt 0:01:23]} 90. Kg4 {[%emt 0:00:20]} Rg1+ {[%emt 0:00:14]} 91. Kh3 {[%emt 0:02:35]} Rh1+ {[%emt 0:00:13]} 92. Kg3 {[%emt 0:00:13]} Rg1+ {[%emt 0:00:23]} 93. Kh2 {[%emt 0:00:42]} Ra1 {[%emt 0:00:12]} 94. Rf4 {[%emt 0:00:15]} Ra3 {[%emt 0:00:10]} 95. Kg2 {[%emt 0:06:28]} 1/2-1/2

[Event "German-ch Women 2024"]
[Site "Ostfildern"]
[Date "2024.08.23"]
[Round "7.3"]
[White "Just, Anita"]
[Black "Miljkovic, Jovana"]
[Result "0-1"]
[ECO "B80"]
[WhiteElo "1871"]
[BlackElo "2021"]
[Annotator "NA"]
[PlyCount "112"]
[EventDate "2024.08.16"]
[EventType "tourn"]
[EventCountry "GER"]
[SourceTitle "playchess.com"]
[Source "ChessBase"]
[SourceQuality "1"]
[TimeControl "40/5400+30:1800+30"]

1. e4 {[%emt 0:00:02]} c5 {[%emt 0:00:05]} 2. Nf3 {[%emt 0:00:19]} d6 {[%emt 0:00:04]} 3. d4 {[%emt 0:00:05]} cxd4 {[%emt 0:00:04]} 4. Nxd4 {[%emt 0:00:06]} Nf6 {[%emt 0:00:02]} 5. Nc3 {[%emt 0:00:07]} a6 {[%emt 0:00:04]} 6. Be3 {[%emt 0:00:08]} e6 {[%emt 0:00:10]} 7. Qf3 {[%emt 0:00:12]} Nbd7 {[%emt 0:00:16]} 8. h3 {[%emt 0:03:33]} h5 {[%emt 0:01:46]} 9. O-O-O {[%emt 0:05:37]} Qc7 {[%emt 0:01:24]} 10. Kb1 {[%emt 0:03:46]} b5 {[%emt 0:03:39]} 11. a3 {[%emt 0:02:05]} Bb7 {[%emt 0:01:44]} 12. Nb3 {[%emt 0:04:20]} Rc8 {[%emt 0:03:27]} 13. Bd3 {[%emt 0:02:45]} Ne5 {[%emt 0:10:19]} 14. Qe2 {[%emt 0:02:58]} Nc4 {[%emt 0:09:54]} 15. Bd2 {[%emt 0:13:55]} Nxd2+ 16. Qxd2 {[%emt 0:01:11]} Be7 {[%emt 0:12:37]} 17. f4 {[%emt 0:04:46]} d5 {[%emt 0:09:52]} 18. exd5 Nxd5 {[%emt 0:01:10]} 19. Nxd5 Bxd5 {[%emt 0:00:15]} 20. Rhe1 {[%emt 0:19:40]} Rd8 {[%emt 0:02:45]} 21. Qe3 {[%emt 0:03:15]} Kf8 {[%emt 0:04:00]} 22. Be4 {[%emt 0:05:10]} Bh4 {[%emt 0:13:11]} 23. g3 {[%emt 0:07:54]} Bxe4 {[%emt 0:01:15]} 24. Qxe4 {[%emt 0:05:18]} Bxg3 {[%emt 0:00:49]} 25. Qb4+ {[%emt 0:01:25]} Kg8 {[%emt 0:01:06]} 26. Rxd8+ {[%emt 0:00:53]} Qxd8 {[%emt 0:00:05]} 27. Rg1 {[%emt 0:01:36]} h4 {[%emt 0:00:58]} 28. Qc3 {[%emt 0:02:22]} Rh5 {[%emt 0:02:32]} 29. Nc1 {[%emt 0:02:08]} Rd5 {[%emt 0:02:17]} 30. Nd3 {[%emt 0:01:12]} Qd7 {[%emt 0:02:14]} 31. Ka2 {[%emt 0:00:39]} Rd4 {[%emt 0:00:54]} 32. b3 {[%emt 0:01:51]} Rd6 {[%emt 0:02:49]} 33. Ne5 {[%emt 0:01:42]} Qd8 {[%emt 0:00:35]} 34. Rg2 {[%emt 0:00:56]} f6 {[%emt 0:01:25]} 35. Nd3 {[%emt 0:00:41]} Qa8 {[%emt 0:00:59]} 36. Re2 {[%emt 0:01:15]} Qc6 {[%emt 0:01:12]} 37. Qb4 {[%emt 0:01:21]} Qd5 {[%emt 0:01:44]} 38. Qc3 {[%emt 0:00:27]} Rc6 {[%emt 0:01:00]} 39. Qd2 {[%emt 0:00:43]} Qd4 {[%emt 0:01:44]} 40. Kb1 {[%emt 0:01:48]} Rd6 {[%emt 0:01:43]} 41. Qc1 {[%emt 0:02:40]} a5 {[%emt 0:03:17]} 42. Qf1 {[%emt 0:04:44]} Qd5 {[%emt 0:01:52]} 43. Re3 {[%emt 0:04:09]} Qf5 {[%emt 0:02:24]} 44. Rf3 {[%emt 0:01:57]} Qe4 {[%emt 0:01:02]} 45. Kb2 {[%emt 0:04:19]} e5 {[%emt 0:02:16]} 46. Kb1 {[%emt 0:01:42]} Rc6 {[%emt 0:01:36]} 47. fxe5 {[%emt 0:04:19]} Bxe5 {[%emt 0:01:17]} 48. Rf2 {[%emt 0:01:44]} Bd6 {[%emt 0:06:27]} 49. Rf5 {[%emt 0:04:01]} Bxa3 {[%emt 0:02:40]} 50. Rxb5 {[%emt 0:01:42]} Bb4 {[%emt 0:02:21]} 51. Qg1 {[%emt 0:03:31]} Rc7 {[%emt 0:10:34]} 52. Qh2 {[%emt 0:00:50]} Rc8 {[%emt 0:01:42]} 53. Qg1 {[%emt 0:00:26]} Qc6 {[%emt 0:01:09]} 54. Rxb4 {[%emt 0:01:07]} Qxc2+ {[%emt 0:00:34]} 55. Ka1 {[%emt 0:00:03]} axb4 {[%emt 0:00:27]} 56. Qh1 {[%emt 0:00:51]} Qxd3 {[%emt 0:00:19]} 0-1

[Event "German-ch Women 2024"]
[Site "Ostfildern"]
[Date "2024.08.23"]
[Round "7.4"]
[White "Novikova, Margarita"]
[Black "Moeller, Hannah"]
[Result "1/2-1/2"]
[ECO "B06"]
[WhiteElo "1991"]
[BlackElo "1845"]
[Annotator "NA RC"]
[PlyCount "80"]
[EventDate "2024.08.16"]
[EventType "tourn"]
[EventCountry "GER"]
[SourceTitle "playchess.com"]
[Source "ChessBase"]
[SourceQuality "1"]
[TimeControl "40/5400+30:1800+30"]

1. e4 {[%emt 0:00:03]} g6 {[%emt 0:00:07]} 2. d4 {[%emt 0:00:04]} d6 {[%emt 0:00:04]} 3. Nc3 {[%emt 0:01:00]} Bg7 {[%emt 0:03:46]} 4. Be3 {[%emt 0:00:27]} Nd7 {[%emt 0:01:33]} 5. Qd2 {[%emt 0:01:02]} c6 {[%emt 0:00:04]} 6. Nf3 {[%emt 0:04:15]} b5 {[%emt 0:01:43]} 7. a3 {[%emt 0:00:32]} Bb7 {[%emt 0:01:32]} 8. Bd3 {[%emt 0:07:23]} a6 {[%emt 0:03:40]} 9. Ne2 {[%emt 0:02:03]} c5 {[%emt 0:00:38]} 10. c3 {[%emt 0:01:35]} cxd4 {[%emt 0:03:26]} 11. cxd4 {[%emt 0:01:28]} e5 {[%emt 0:00:19]} 12. Nc3 {[%emt 0:05:13]} Ngf6 {[%emt 0:01:24]} 13. Bh6 {[%emt 0:03:48]} O-O {[%emt 0:00:22]} 14. Bxg7 Kxg7 {[%emt 0:00:17]} 15. O-O {[%emt 0:01:35]} exd4 16. Nxd4 {[%emt 0:00:36]} d5 {[%emt 0:01:17]} 17. exd5 Nxd5 {[%emt 0:03:10]} 18. Be4 {[%emt 0:20:44]} N7f6 {[%emt 0:02:48]} 19. Bf3 {[%emt 0:01:24]} Qd7 {[%emt 0:05:28]} 20. Rad1 {[%emt 0:08:12]} Nxc3 {[%emt 0:05:11]} 21. Qxc3 {[%emt 0:01:17]} Bxf3 22. Nxf3 {[%emt 0:00:47]} Qc8 {[%emt 0:06:54]} 23. Qb4 {[%emt 0:06:22]} Qb7 {[%emt 0:04:24]} 24. Rd6 {[%emt 0:03:47]} Qe4 {[%emt 0:09:28]} 25. Qc3 {[%emt 0:04:25]} Qf4 {[%emt 0:01:02]} 26. Rc6 {[%emt 0:00:54]} Rfe8 {[%emt 0:07:23]} 27. g3 {[%emt 0:02:39]} Qf5 {[%emt 0:00:21]} 28. Rd1 {[%emt 0:08:44]} Rad8 {[%emt 0:07:08]} 29. Rxd8 {[%emt 0:08:33]} Rxd8 {[%emt 0:00:51]} 30. Kg2 {[%emt 0:04:15]} a5 {[%emt 0:05:08]} 31. Nh4 {[%emt 0:00:33]} Qe4+ {[%emt 0:01:18]} 32. Nf3 {[%emt 0:00:30]} Qf5 {[%emt 0:00:08]} 33. b4 {[%emt 0:00:43]} axb4 {[%emt 0:01:23]} 34. Qxb4 {[%emt 0:01:10]} Rd3 {[%emt 0:01:16]} 35. Qf4 {[%emt 0:01:04]} Qxf4 {[%emt 0:00:18]} 36. gxf4 {[%emt 0:00:00]} Rxa3 {[%emt 0:00:09]} 37. Rb6 {[%emt 0:00:01]} Rb3 {[%emt 0:01:42]} 38. Nd4 {[%emt 0:00:18]} Rb4 {[%emt 0:00:34]} 39. Nc6 {[%emt 0:00:34]} Rxf4 {[%emt 0:03:04]} 40. Rxb5 {[%emt 0:00:08]} Rg4+ {[%emt 0:00:56]} 1/2-1/2

[Event "German-ch Women 2024"]
[Site "Ostfildern"]
[Date "2024.08.23"]
[Round "7.5"]
[White "Mader, Lena"]
[Black "Moutaqi, Sandra"]
[Result "1/2-1/2"]
[ECO "D77"]
[WhiteElo "1876"]
[BlackElo "1961"]
[Annotator "NA RC"]
[PlyCount "89"]
[EventDate "2024.08.16"]
[EventType "tourn"]
[EventCountry "GER"]
[SourceTitle "playchess.com"]
[Source "ChessBase"]
[SourceQuality "1"]
[TimeControl "40/5400+30:1800+30"]

1. c4 {[%emt 0:00:01]} Nf6 {[%emt 0:00:19]} 2. Nf3 {[%emt 0:00:31]} e6 {[%emt 0:00:20]} 3. g3 {[%emt 0:00:18]} d5 {[%emt 0:00:20]} 4. Bg2 {[%emt 0:00:17]} g6 {[%emt 0:00:52]} 5. O-O {[%emt 0:00:25]} Bg7 {[%emt 0:00:07]} 6. d4 {[%emt 0:01:21]} O-O {[%emt 0:00:22]} 7. Qd3 {[%emt 0:02:11]} Nbd7 {[%emt 0:03:15]} 8. cxd5 {[%emt 0:04:28]} exd5 {[%emt 0:00:20]} 9. Nc3 {[%emt 0:00:31]} Re8 {[%emt 0:00:49]} 10. Bg5 {[%emt 0:02:50]} c6 {[%emt 0:00:15]} 11. Qd2 {[%emt 0:05:39]} Qb6 {[%emt 0:01:48]} 12. Rfd1 {[%emt 0:04:44]} Ne4 {[%emt 0:04:05]} 13. Nxe4 {[%emt 0:04:22]} dxe4 {[%emt 0:00:15]} 14. Ne1 {[%emt 0:00:19]} Nf6 {[%emt 0:01:00]} 15. Bxf6 Bxf6 {[%emt 0:00:14]} 16. e3 {[%emt 0:10:49]} Bf5 {[%emt 0:04:25]} 17. Rdc1 {[%emt 0:05:02]} Rad8 {[%emt 0:00:58]} 18. b4 {[%emt 0:01:14]} Be7 {[%emt 0:04:53]} 19. Rab1 {[%emt 0:01:35]} a6 {[%emt 0:03:22]} 20. Nc2 {[%emt 0:03:32]} Rd5 {[%emt 0:02:03]} 21. Bf1 {[%emt 0:05:46]} Bg4 {[%emt 0:02:50]} 22. Na1 {[%emt 0:01:31]} Bf3 {[%emt 0:03:29]} 23. a3 {[%emt 0:00:25]} h5 {[%emt 0:01:21]} 24. Nb3 {[%emt 0:01:36]} h4 {[%emt 0:01:03]} 25. Nc5 {[%emt 0:01:14]} Kg7 {[%emt 0:05:19]} 26. Bg2 {[%emt 0:00:40]} Bxg2 27. Kxg2 {[%emt 0:00:02]} Bd6 {[%emt 0:12:15]} 28. Qc2 {[%emt 0:03:53]} Bxc5 {[%emt 0:04:07]} 29. bxc5 {[%emt 0:08:22]} Qc7 {[%emt 0:00:30]} 30. Qb2 {[%emt 0:05:16]} Re7 {[%emt 0:07:11]} 31. Rf1 {[%emt 0:04:17]} Qc8 {[%emt 0:01:38]} 32. Qe2 {[%emt 0:03:48]} Rh5 {[%emt 0:04:12]} 33. Rb2 {[%emt 0:09:15]} Re8 {[%emt 0:03:10]} 34. Rfb1 {[%emt 0:02:51]} hxg3 {[%emt 0:01:34]} 35. fxg3 {[%emt 0:00:12]} Qh3+ {[%emt 0:00:32]} 36. Kg1 {[%emt 0:00:14]} Reh8 {[%emt 0:01:06]} 37. Qf2 {[%emt 0:04:16]} Rf5 {[%emt 0:03:30]} 38. Qg2 {[%emt 0:00:13]} Qg4 {[%emt 0:00:40]} 39. Rf2 {[%emt 0:03:14]} Rxf2 {[%emt 0:04:36]} 40. Qxf2 {[%emt 0:00:02]} Qd7 {[%emt 0:04:12]} 41. Qf4 {[%emt 0:31:49]} f5 {[%emt 0:32:07]} 42. Qe5+ {[%emt 0:01:25]} Kh7 {[%emt 0:00:59]} 43. Kg2 {[%emt 0:00:00]} Qf7 {[%emt 0:00:00]} 44. Rb2 {[%emt 0:00:00]} Rg8 {[%emt 0:00:00]} 45. h3 {[%emt 0:00:00]} 1/2-1/2

[Event "German-ch Women 2024"]
[Site "Ostfildern"]
[Date "2024.08.23"]
[Round "7.6"]
[White "Bursan, Ana-Maria"]
[Black "Walker, Julia"]
[Result "0-1"]
[ECO "B26"]
[WhiteElo "1719"]
[BlackElo "1836"]
[Annotator "NA RC"]
[PlyCount "94"]
[EventDate "2024.08.16"]
[EventType "tourn"]
[EventCountry "GER"]
[SourceTitle "playchess.com"]
[Source "ChessBase"]
[SourceQuality "1"]
[TimeControl "40/5400+30:1800+30"]

1. e4 {[%emt 0:00:02]} c5 {[%emt 0:00:04]} 2. Nc3 {[%emt 0:00:10]} Nc6 {[%emt 0:00:07]} 3. g3 {[%emt 0:00:39]} g6 {[%emt 0:00:05]} 4. Bg2 {[%emt 0:00:29]} Bg7 {[%emt 0:00:05]} 5. Nge2 {[%emt 0:00:41]} e6 {[%emt 0:01:24]} 6. d3 {[%emt 0:01:55]} Nge7 {[%emt 0:01:26]} 7. Be3 {[%emt 0:04:51]} Nd4 {[%emt 0:00:48]} 8. Qd2 {[%emt 0:03:59]} O-O {[%emt 0:02:20]} 9. O-O {[%emt 0:05:43]} d6 {[%emt 0:06:25]} 10. Nd1 {[%emt 0:05:20]} Bd7 {[%emt 0:13:46]} 11. c3 {[%emt 0:04:22]} Nxe2+ 12. Qxe2 {[%emt 0:00:25]} Rc8 {[%emt 0:15:58]} 13. f4 {[%emt 0:11:12]} b5 {[%emt 0:05:20]} 14. h4 {[%emt 0:07:00]} a5 {[%emt 0:21:49]} 15. h5 {[%emt 0:05:55]} b4 {[%emt 0:00:54]} 16. g4 {[%emt 0:06:28]} f5 {[%emt 0:05:06]} 17. Bh3 {[%emt 0:11:04]} Bc6 {[%emt 0:08:58]} 18. e5 {[%emt 0:07:42]} dxe5 {[%emt 0:00:56]} 19. fxe5 {[%emt 0:00:44]} Qd5 {[%emt 0:02:33]} 20. Bg2 {[%emt 0:11:21]} Qxg2+ {[%emt 0:00:25]} 21. Qxg2 {[%emt 0:00:16]} Bxg2 {[%emt 0:00:09]} 22. Kxg2 {[%emt 0:00:03]} Bxe5 {[%emt 0:00:54]} 23. Bh6 {[%emt 0:04:39]} Bg7 {[%emt 0:00:56]} 24. Bg5 {[%emt 0:00:46]} Nd5 {[%emt 0:00:35]} 25. c4 {[%emt 0:01:06]} Nf6 {[%emt 0:00:25]} 26. h6 {[%emt 0:01:10]} Bh8 {[%emt 0:00:18]} 27. gxf5 {[%emt 0:00:59]} exf5 {[%emt 0:00:27]} 28. Ne3 {[%emt 0:00:46]} Rcd8 {[%emt 0:08:04]} 29. Nd5 {[%emt 0:02:48]} Nxd5 {[%emt 0:00:25]} 30. Bxd8 {[%emt 0:01:17]} Ne3+ {[%emt 0:00:08]} 31. Kf2 {[%emt 0:00:40]} Nxf1 {[%emt 0:00:10]} 32. Be7 {[%emt 0:00:53]} Re8 {[%emt 0:00:21]} 33. Bxc5 {[%emt 0:00:23]} Nh2 {[%emt 0:00:22]} 34. d4 {[%emt 0:00:24]} Ng4+ {[%emt 0:00:23]} 35. Kf3 {[%emt 0:00:43]} Re3+ {[%emt 0:00:19]} 36. Kg2 {[%emt 0:00:45]} Rd3 {[%emt 0:00:18]} 37. d5 {[%emt 0:00:38]} Be5 {[%emt 0:00:09]} 38. Re1 {[%emt 0:00:30]} Rd2+ {[%emt 0:00:24]} 39. Kf3 {[%emt 0:00:16]} Rd3+ {[%emt 0:02:08]} 40. Kg2 {[%emt 0:00:33]} Kf7 {[%emt 0:00:34]} 41. Re2 {[%emt 0:30:50]} f4 {[%emt 0:30:33]} 42. Re1 {[%emt 0:00:00]} f3+ {[%emt 0:00:00]} 43. Kf1 {[%emt 0:00:00]} Rd2 {[%emt 0:00:00]} 44. d6 {[%emt 0:00:00]} Nh2+ {[%emt 0:00:00]} 45. Kg1 {[%emt 0:00:00]} f2+ {[%emt 0:00:00]} 46. Bxf2 {[%emt 0:00:00]} Nf3+ {[%emt 0:00:00]} 47. Kf1 {[%emt 0:00:00]} Nxe1 {[%emt 0:00:00]} 0-1